[Event "Live Chess"]
[Site "Chess.com"]
[Date "2011.01.11"]
[Round "-"]
[White "hipposcottimus"]
[Black "haydos_baby"]
[Result "0-1"]
[CurrentPosition "r2n3k/1b5p/p2Rp3/1p6/8/2P1P3/PP4PP/6K1 w - -"]
[Timezone "UTC"]
[ECO "B20"]
[ECOUrl "https://www.chess.com/openings/Sicilian-Defense-Bowdler-Attack"]
[UTCDate "2011.01.11"]
[UTCTime "07:19:55"]
[WhiteElo "1328"]
[BlackElo "1263"]
[TimeControl "480"]
[Termination "haydos_baby won on time"]
[StartTime "07:19:55"]
[EndDate "2011.01.11"]
[EndTime "07:31:29"]
[Link "https://www.chess.com/game/live/86377850"]

1. e4 {[%clk 0:08:00]} 1... c5 {[%clk 0:08:00]} 2. Bc4 {[%clk 0:07:39.5]} 2... g6 {[%clk 0:07:54.8]} 3. Nf3 {[%clk 0:07:35.9]} 3... Bg7 {[%clk 0:07:52.1]} 4. e5 {[%clk 0:07:34.6]} 4... e6 {[%clk 0:07:48.1]} 5. d4 {[%clk 0:07:32.5]} 5... a6 {[%clk 0:07:44.5]} 6. dxc5 {[%clk 0:07:30]} 6... Qa5+ {[%clk 0:07:38.1]} 7. c3 {[%clk 0:07:14.4]} 7... Qxc5 {[%clk 0:07:36.4]} 8. Na3 {[%clk 0:07:12.1]} 8... Bxe5 {[%clk 0:07:11.9]} 9. O-O {[%clk 0:07:08.9]} 9... Qc7 {[%clk 0:07:06.2]} 10. Bg5 {[%clk 0:07:03.3]} 10... Bf6 {[%clk 0:06:50.2]} 11. Qd2 {[%clk 0:06:57.7]} 11... Bg7 {[%clk 0:06:27.6]} 12. Rae1 {[%clk 0:06:04.2]} 12... Nc6 {[%clk 0:06:22.2]} 13. Qf4 {[%clk 0:05:56.4]} 13... Qxf4 {[%clk 0:06:15.8]} 14. Bxf4 {[%clk 0:05:53.7]} 14... Nge7 {[%clk 0:06:11.8]} 15. Ne5 {[%clk 0:05:43.4]} 15... O-O {[%clk 0:06:00.1]} 16. Ng4 {[%clk 0:04:41.7]} 16... b5 {[%clk 0:05:46.5]} 17. Bd3 {[%clk 0:04:26.8]} 17... f5 {[%clk 0:05:19.9]} 18. Nh6+ {[%clk 0:04:20.3]} 18... Kh8 {[%clk 0:05:12.3]} 19. Nc2 {[%clk 0:04:09.1]} 19... Nd5 {[%clk 0:04:57.5]} 20. Bd6 {[%clk 0:04:02.9]} 20... Rf6 {[%clk 0:04:27.1]} 21. Nxf5 {[%clk 0:03:05.2]} 21... gxf5 {[%clk 0:04:11.5]} 22. Bxf5 {[%clk 0:02:59.4]} 22... Rxf5 {[%clk 0:03:55.5]} 23. Ne3 {[%clk 0:02:52.8]} 23... Nxe3 {[%clk 0:03:52.5]} 24. fxe3 {[%clk 0:02:48.7]} 24... Rxf1+ {[%clk 0:03:34.5]} 25. Rxf1 {[%clk 0:02:28.9]} 25... Bb7 {[%clk 0:03:21.3]} 26. Rf7 {[%clk 0:02:23.6]} 26... Be5 {[%clk 0:02:50.9]} 27. Rxd7 {[%clk 0:02:09.8]} 27... Bxd6 {[%clk 0:02:46.8]} 28. Rxd6 {[%clk 0:02:04.3]} 28... Nd8 {[%clk 0:02:36]} 0-1

[Event "Live Chess"]
[Site "Chess.com"]
[Date "2011.01.11"]
[Round "-"]
[White "dtcblackman"]
[Black "hipposcottimus"]
[Result "1/2-1/2"]
[CurrentPosition "5bb1/7p/8/1pk1q3/8/K7/8/8 w - -"]
[Timezone "UTC"]
[ECO "C45"]
[ECOUrl "https://www.chess.com/openings/Scotch-Game"]
[UTCDate "2011.01.11"]
[UTCTime "06:26:34"]
[WhiteElo "1197"]
[BlackElo "1337"]
[TimeControl "540"]
[Termination "Game drawn by stalemate"]
[StartTime "06:26:34"]
[EndDate "2011.01.11"]
[EndTime "06:41:18"]
[Link "https://www.chess.com/game/live/86368058"]

1. e4 {[%clk 0:09:00]} 1... e5 {[%clk 0:09:00]} 2. Nf3 {[%clk 0:08:57.7]} 2... Nc6 {[%clk 0:08:56.3]} 3. d4 {[%clk 0:08:54.7]} 3... d5 {[%clk 0:08:54.6]} 4. dxe5 {[%clk 0:08:49.2]} 4... dxe4 {[%clk 0:08:52.1]} 5. Qxd8+ {[%clk 0:08:38.8]} 5... Nxd8 {[%clk 0:08:51.7]} 6. Ng5 {[%clk 0:08:32.1]} 6... f5 {[%clk 0:08:51.3]} 7. Bc4 {[%clk 0:08:30.1]} 7... Nh6 {[%clk 0:08:44]} 8. Nh3 {[%clk 0:08:16.9]} 8... Ne6 {[%clk 0:08:36.9]} 9. Bxh6 {[%clk 0:08:11.7]} 9... gxh6 {[%clk 0:08:32.9]} 10. O-O {[%clk 0:08:09.5]} 10... Rg8 {[%clk 0:08:27.1]} 11. Nc3 {[%clk 0:07:56.3]} 11... Rg6 {[%clk 0:08:20.1]} 12. Nd5 {[%clk 0:07:53.2]} 12... Bd7 {[%clk 0:07:57.5]} 13. Nxc7+ {[%clk 0:07:50.9]} 13... Nxc7 {[%clk 0:07:53.2]} 14. Nf4 {[%clk 0:07:42.8]} 14... Rg7 {[%clk 0:07:48.3]} 15. Rfd1 {[%clk 0:07:29.7]} 15... O-O-O {[%clk 0:07:39.5]} 16. e6 {[%clk 0:07:28.5]} 16... Bc6 {[%clk 0:06:55.1]} 17. Rxd8+ {[%clk 0:07:24]} 17... Kxd8 {[%clk 0:06:54.7]} 18. Rd1+ {[%clk 0:07:15.7]} 18... Ke7 {[%clk 0:06:54.3]} 19. b4 {[%clk 0:06:56.5]} 19... e3 {[%clk 0:06:35.2]} 20. Re1 {[%clk 0:06:30]} 20... exf2+ {[%clk 0:06:13]} 21. Kxf2 {[%clk 0:06:28]} 21... Be4 {[%clk 0:05:58.2]} 22. c3 {[%clk 0:06:16.6]} 22... Rg4 {[%clk 0:05:45.9]} 23. g3 {[%clk 0:06:08.5]} 23... h5 {[%clk 0:02:39.3]} 24. Nxh5 {[%clk 0:05:54.1]} 24... Nxe6 {[%clk 0:02:15.5]} 25. Bxe6 {[%clk 0:05:47.4]} 25... Kxe6 {[%clk 0:02:12]} 26. Nf4+ {[%clk 0:05:42.7]} 26... Ke5 {[%clk 0:01:47.3]} 27. a4 {[%clk 0:05:37.2]} 27... b6 {[%clk 0:01:39.6]} 28. Nd3+ {[%clk 0:05:34.7]} 28... Kd5 {[%clk 0:01:29.5]} 29. Nf4+ {[%clk 0:05:20.1]} 29... Kc4 {[%clk 0:01:26.4]} 30. Ne6 {[%clk 0:05:10.9]} 30... Bh6 {[%clk 0:01:15.3]} 31. h3 {[%clk 0:04:47.9]} 31... Rg6 {[%clk 0:01:06]} 32. g4 {[%clk 0:04:43.6]} 32... Rxe6 {[%clk 0:00:52.4]} 33. gxf5 {[%clk 0:04:41.9]} 33... Bxf5 {[%clk 0:00:46.9]} 34. Rxe6 {[%clk 0:04:36.9]} 34... Bxe6 {[%clk 0:00:43.6]} 35. Kf3 {[%clk 0:04:32.9]} 35... Kxc3 {[%clk 0:00:42.4]} 36. b5 {[%clk 0:04:30]} 36... Kb4 {[%clk 0:00:40]} 37. Ke4 {[%clk 0:04:26.9]} 37... Kxa4 {[%clk 0:00:37.7]} 38. h4 {[%clk 0:04:25.8]} 38... Bf7 {[%clk 0:00:35.6]} 39. Ke5 {[%clk 0:04:22.3]} 39... Kxb5 {[%clk 0:00:32.8]} 40. Kf6 {[%clk 0:04:20.2]} 40... Bg8 {[%clk 0:00:30.3]} 41. Kf5 {[%clk 0:04:10.9]} 41... a5 {[%clk 0:00:27.7]} 42. Ke4 {[%clk 0:04:09.2]} 42... a4 {[%clk 0:00:26]} 43. Kd3 {[%clk 0:04:08.2]} 43... Kb4 {[%clk 0:00:25.5]} 44. Kc2 {[%clk 0:04:06.5]} 44... a3 {[%clk 0:00:25.2]} 45. Kb1 {[%clk 0:04:04]} 45... Bg7 {[%clk 0:00:24.8]} 46. Kc2 {[%clk 0:03:55.9]} 46... a2 {[%clk 0:00:24.4]} 47. Kd3 {[%clk 0:03:52.8]} 47... a1=Q {[%clk 0:00:23.3]} 48. Ke3 {[%clk 0:03:50.5]} 48... Qf6 {[%clk 0:00:23]} 49. h5 {[%clk 0:03:47.9]} 49... Qh4 {[%clk 0:00:22.6]} 50. h6 {[%clk 0:03:45.3]} 50... Qh5 {[%clk 0:00:22.2]} 51. Kd3 {[%clk 0:03:41]} 51... Bxh6 {[%clk 0:00:20.8]} 52. Kc2 {[%clk 0:03:36.9]} 52... Kc5 {[%clk 0:00:20.1]} 53. Kc3 {[%clk 0:03:31.9]} 53... b5 {[%clk 0:00:19.7]} 54. Kb2 {[%clk 0:03:28.2]} 54... Qe5+ {[%clk 0:00:17.9]} 55. Ka3 {[%clk 0:03:26.4]} 55... Bf8 {[%clk 0:00:17.1]} 1/2-1/2

[Event "Live Chess"]
[Site "Chess.com"]
[Date "2011.01.11"]
[Round "-"]
[White "vijayaru"]
[Black "hipposcottimus"]
[Result "0-1"]
[CurrentPosition "4kb1r/p2p1ppp/1p3n2/1p2p3/P1Pn4/R2Q2P1/1P1PPP1P/2B1K1q1 w Kkq -"]
[Timezone "UTC"]
[ECO "A10"]
[ECOUrl "https://www.chess.com/openings/English-Opening-1...b6"]
[UTCDate "2011.01.11"]
[UTCTime "06:24:08"]
[WhiteElo "1200"]
[BlackElo "1340"]
[TimeControl "600"]
[Termination "hipposcottimus won by checkmate"]
[StartTime "06:24:08"]
[EndDate "2011.01.11"]
[EndTime "06:25:26"]
[Link "https://www.chess.com/game/live/86367655"]

1. c4 {[%clk 0:10:00]} 1... b6 {[%clk 0:10:00]} 2. a4 {[%clk 0:09:57.6]} 2... e5 {[%clk 0:09:55.1]} 3. g3 {[%clk 0:09:55.7]} 3... Nf6 {[%clk 0:09:53.2]} 4. Bg2 {[%clk 0:09:53.5]} 4... c6 {[%clk 0:09:52.8]} 5. Nc3 {[%clk 0:09:50.8]} 5... Bb7 {[%clk 0:09:52.3]} 6. Nb5 {[%clk 0:09:44.9]} 6... cxb5 {[%clk 0:09:50.9]} 7. Bxb7 {[%clk 0:09:41.5]} 7... Nc6 {[%clk 0:09:48.9]} 8. Bxa8 {[%clk 0:09:37.7]} 8... Qxa8 {[%clk 0:09:48.2]} 9. Qb3 {[%clk 0:09:34.4]} 9... Nd4 {[%clk 0:09:43.4]} 10. Qd3 {[%clk 0:09:24.9]} 10... Qxh1 {[%clk 0:09:41]} 11. Ra3 {[%clk 0:09:14.8]} 11... Qxg1# {[%clk 0:09:33.1]} 0-1

[Event "Live Chess"]
[Site "Chess.com"]
[Date "2011.01.11"]
[Round "-"]
[White "theriverman"]
[Black "hipposcottimus"]
[Result "1-0"]
[CurrentPosition "6k1/pR6/2n3p1/5p2/8/B5P1/5PKP/8 b - -"]
[Timezone "UTC"]
[ECO "C62"]
[ECOUrl "https://www.chess.com/openings/Ruy-Lopez-Opening-Old-Steinitz-Defense-4.d4"]
[UTCDate "2011.01.11"]
[UTCTime "06:06:04"]
[WhiteElo "1275"]
[BlackElo "1340"]
[TimeControl "600"]
[Termination "theriverman won on time"]
[StartTime "06:06:04"]
[EndDate "2011.01.11"]
[EndTime "06:17:00"]
[Link "https://www.chess.com/game/live/86363460"]

1. e4 {[%clk 0:10:00]} 1... e5 {[%clk 0:10:00]} 2. Nf3 {[%clk 0:09:58.7]} 2... Nc6 {[%clk 0:09:58.1]} 3. Bb5 {[%clk 0:09:54.6]} 3... d6 {[%clk 0:09:49]} 4. d4 {[%clk 0:09:47.6]} 4... Bg4 {[%clk 0:09:24.4]} 5. dxe5 {[%clk 0:09:43.6]} 5... dxe5 {[%clk 0:09:18.4]} 6. Qxd8+ {[%clk 0:09:41.2]} 6... Rxd8 {[%clk 0:09:16.3]} 7. Nxe5 {[%clk 0:09:39]} 7... Bd7 {[%clk 0:09:06.8]} 8. Nxd7 {[%clk 0:09:30.5]} 8... Rxd7 {[%clk 0:09:01.5]} 9. O-O {[%clk 0:09:26]} 9... Nge7 {[%clk 0:08:56.5]} 10. e5 {[%clk 0:09:20.3]} 10... g6 {[%clk 0:08:46.2]} 11. Nc3 {[%clk 0:09:14]} 11... Bg7 {[%clk 0:08:41.2]} 12. Bxc6 {[%clk 0:09:02.6]} 12... Nxc6 {[%clk 0:08:34.7]} 13. Kh1 {[%clk 0:08:42.7]} 13... O-O {[%clk 0:08:06.2]} 14. Bf4 {[%clk 0:08:33]} 14... Re8 {[%clk 0:07:22]} 15. Rad1 {[%clk 0:08:27]} 15... Rde7 {[%clk 0:07:07.9]} 16. Rfe1 {[%clk 0:08:11]} 16... f6 {[%clk 0:05:41.5]} 17. e6 {[%clk 0:08:03.2]} 17... Nb4 {[%clk 0:05:34.4]} 18. Re2 {[%clk 0:07:36.2]} 18... f5 {[%clk 0:04:58.5]} 19. a3 {[%clk 0:07:26.8]} 19... Bxc3 {[%clk 0:04:20.1]} 20. bxc3 {[%clk 0:07:21.6]} 20... Nc6 {[%clk 0:04:11]} 21. Rd7 {[%clk 0:07:06.9]} 21... Rxe6 {[%clk 0:03:52.7]} 22. Rxe6 {[%clk 0:07:02.7]} 22... Rxe6 {[%clk 0:03:30.6]} 23. g3 {[%clk 0:06:59]} 23... Kf8 {[%clk 0:03:26.9]} 24. Bxc7 {[%clk 0:06:49.9]} 24... Re2 {[%clk 0:03:12.5]} 25. Kg2 {[%clk 0:06:45.9]} 25... Rxc2 {[%clk 0:03:10.3]} 26. Rxh7 {[%clk 0:06:41.3]} 26... Rxc3 {[%clk 0:03:07]} 27. Bd6+ {[%clk 0:06:35.7]} 27... Kg8 {[%clk 0:03:04.9]} 28. Rxb7 {[%clk 0:06:28.8]} 28... Rxa3 {[%clk 0:03:04.2]} 29. Bxa3 {[%clk 0:06:14.8]} 1-0

[Event "Live Chess"]
[Site "Chess.com"]
[Date "2011.01.11"]
[Round "-"]
[White "hipposcottimus"]
[Black "theriverman"]
[Result "1-0"]
[CurrentPosition "6k1/4R3/6pp/1p6/r5r1/8/2Q3PP/R5K1 w - -"]
[Timezone "UTC"]
[ECO "B21"]
[ECOUrl "https://www.chess.com/openings/Sicilian-Defense-Smith-Morra-Gambit"]
[UTCDate "2011.01.11"]
[UTCTime "05:47:29"]
[WhiteElo "1340"]
[BlackElo "1275"]
[TimeControl "600"]
[Termination "hipposcottimus won by resignation"]
[StartTime "05:47:29"]
[EndDate "2011.01.11"]
[EndTime "06:01:06"]
[Link "https://www.chess.com/game/live/86360394"]

1. e4 {[%clk 0:10:00]} 1... c5 {[%clk 0:10:00]} 2. d4 {[%clk 0:09:56.9]} 2... d6 {[%clk 0:09:51.6]} 3. dxc5 {[%clk 0:09:41.8]} 3... Qa5+ {[%clk 0:09:48.8]} 4. Bd2 {[%clk 0:09:31.9]} 4... Qxc5 {[%clk 0:09:46.9]} 5. c4 {[%clk 0:09:29.2]} 5... Nf6 {[%clk 0:09:33.2]} 6. Nc3 {[%clk 0:09:26.8]} 6... e5 {[%clk 0:09:09.3]} 7. Nf3 {[%clk 0:09:14.1]} 7... Bg4 {[%clk 0:08:51]} 8. Be2 {[%clk 0:09:09.4]} 8... Be7 {[%clk 0:08:45.6]} 9. O-O {[%clk 0:08:59]} 9... O-O {[%clk 0:08:40.4]} 10. Be3 {[%clk 0:08:51.7]} 10... Qc8 {[%clk 0:08:22.7]} 11. Nd5 {[%clk 0:08:45.3]} 11... Nxd5 {[%clk 0:08:19.4]} 12. cxd5 {[%clk 0:08:38.2]} 12... h6 {[%clk 0:08:11.9]} 13. Nd4 {[%clk 0:08:07.9]} 13... Bxe2 {[%clk 0:08:07]} 14. Nxe2 {[%clk 0:08:06]} 14... f5 {[%clk 0:08:00.7]} 15. f4 {[%clk 0:08:04.6]} 15... fxe4 {[%clk 0:07:54.9]} 16. fxe5 {[%clk 0:07:55.5]} 16... dxe5 {[%clk 0:07:48.2]} 17. Ng3 {[%clk 0:07:49.9]} 17... Nd7 {[%clk 0:07:28.7]} 18. Nxe4 {[%clk 0:07:34.1]} 18... Bf6 {[%clk 0:07:08.2]} 19. Qb3 {[%clk 0:07:06.3]} 19... Kh8 {[%clk 0:06:57.5]} 20. Nd6 {[%clk 0:06:37.4]} 20... Qc5 {[%clk 0:06:33.7]} 21. Bxc5 {[%clk 0:06:31.3]} 21... Nxc5 {[%clk 0:06:31.7]} 22. Qc4 {[%clk 0:06:15]} 22... b6 {[%clk 0:06:29]} 23. Ne4 {[%clk 0:06:06.9]} 23... Nxe4 {[%clk 0:06:17.4]} 24. Qxe4 {[%clk 0:06:04.9]} 24... Rfd8 {[%clk 0:06:10]} 25. a4 {[%clk 0:05:52]} 25... Rd6 {[%clk 0:06:06]} 26. b4 {[%clk 0:05:42.4]} 26... Rc8 {[%clk 0:06:03.7]} 27. a5 {[%clk 0:05:35]} 27... b5 {[%clk 0:06:00.9]} 28. a6 {[%clk 0:05:22.9]} 28... Rc4 {[%clk 0:05:57.9]} 29. Qe1 {[%clk 0:04:58.7]} 29... Rxd5 {[%clk 0:05:53.8]} 30. Qe3 {[%clk 0:04:23.3]} 30... e4 {[%clk 0:05:47.4]} 31. Qxa7 {[%clk 0:04:14.4]} 31... Bd4+ {[%clk 0:05:43.5]} 32. Qxd4 {[%clk 0:03:59.5]} 32... Rdxd4 {[%clk 0:05:31.6]} 33. a7 {[%clk 0:03:57.2]} 33... Rxb4 {[%clk 0:05:24.6]} 34. a8=Q+ {[%clk 0:03:53.4]} 34... Kh7 {[%clk 0:05:20.6]} 35. Qa5 {[%clk 0:03:43.3]} 35... e3 {[%clk 0:05:09.9]} 36. Rfe1 {[%clk 0:03:19.1]} 36... Re4 {[%clk 0:04:55.1]} 37. Rxe3 {[%clk 0:03:08.6]} 37... Rg4 {[%clk 0:04:36.5]} 38. Qa2 {[%clk 0:02:47]} 38... Ra4 {[%clk 0:04:25.1]} 39. Qc2+ {[%clk 0:02:41.5]} 39... g6 {[%clk 0:04:16.7]} 40. Re7+ {[%clk 0:02:31.2]} 40... Kg8 {[%clk 0:04:12.4]} 1-0

[Event "Live Chess"]
[Site "Chess.com"]
[Date "2011.01.11"]
[Round "-"]
[White "hipposcottimus"]
[Black "Stea1th-Con"]
[Result "0-1"]
[CurrentPosition "r5k1/5pp1/4p2p/qBQ1P3/5n2/1b6/5NPP/2R3K1 w - -"]
[Timezone "UTC"]
[ECO "B07"]
[ECOUrl "https://www.chess.com/openings/Pirc-Defense-2.d4-c6-3.c4"]
[UTCDate "2011.01.11"]
[UTCTime "04:26:21"]
[WhiteElo "1340"]
[BlackElo "1452"]
[TimeControl "120+12"]
[Termination "Stea1th-Con won by resignation"]
[StartTime "04:26:21"]
[EndDate "2011.01.11"]
[EndTime "04:40:46"]
[Link "https://www.chess.com/game/live/86344754"]

1. e4 {[%clk 0:02:00]} 1... d6 {[%clk 0:02:00]} 2. d4 {[%clk 0:02:09.8]} 2... c6 {[%clk 0:02:10.1]} 3. c4 {[%clk 0:02:18.7]} 3... e6 {[%clk 0:02:20.9]} 4. Nf3 {[%clk 0:02:27.1]} 4... h6 {[%clk 0:02:30.4]} 5. b4 {[%clk 0:02:34.1]} 5... Ne7 {[%clk 0:02:27.2]} 6. Nc3 {[%clk 0:02:43.6]} 6... d5 {[%clk 0:02:32.9]} 7. Be2 {[%clk 0:02:35.5]} 7... Nd7 {[%clk 0:02:39]} 8. e5 {[%clk 0:02:45]} 8... dxc4 {[%clk 0:02:43.3]} 9. Bxc4 {[%clk 0:02:40.3]} 9... Nd5 {[%clk 0:02:53]} 10. Ne4 {[%clk 0:02:42.6]} 10... N7b6 {[%clk 0:02:57.8]} 11. Qc2 {[%clk 0:02:25.9]} 11... Nxb4 {[%clk 0:02:55.8]} 12. Qb3 {[%clk 0:02:19.3]} 12... a5 {[%clk 0:02:52.3]} 13. a4 {[%clk 0:01:56.5]} 13... N6d5 {[%clk 0:02:52]} 14. O-O {[%clk 0:02:04.2]} 14... Be7 {[%clk 0:03:01]} 15. Ne1 {[%clk 0:01:58.3]} 15... O-O {[%clk 0:03:07.1]} 16. f4 {[%clk 0:02:08.8]} 16... b5 {[%clk 0:03:09.4]} 17. axb5 {[%clk 0:02:15.5]} 17... cxb5 {[%clk 0:03:19.3]} 18. Bxb5 {[%clk 0:02:24.2]} 18... a4 {[%clk 0:03:18.2]} 19. Rxa4 {[%clk 0:02:29.8]} 19... Rxa4 {[%clk 0:03:10.2]} 20. Qxa4 {[%clk 0:02:29.5]} 20... Qb6 {[%clk 0:03:15.9]} 21. Ba3 {[%clk 0:01:54.8]} 21... Qxd4+ {[%clk 0:02:58]} 22. Nf2 {[%clk 0:01:56]} 22... Nxf4 {[%clk 0:02:25.8]} 23. Nf3 {[%clk 0:01:51.9]} 23... Qc5 {[%clk 0:02:23.1]} 24. Rc1 {[%clk 0:02:01.4]} 24... Qb6 {[%clk 0:02:09.5]} 25. Bxb4 {[%clk 0:01:55.7]} 25... Bxb4 {[%clk 0:01:58.5]} 26. Qxb4 {[%clk 0:02:06.5]} 26... Nd5 {[%clk 0:02:05.7]} 27. Qa4 {[%clk 0:01:58.3]} 27... Bb7 {[%clk 0:02:05.2]} 28. Nd4 {[%clk 0:01:35.6]} 28... Ra8 {[%clk 0:02:08]} 29. Qb3 {[%clk 0:00:59.2]} 29... Nf4 {[%clk 0:01:57.2]} 30. Qc4 {[%clk 0:00:45.1]} 30... Bd5 {[%clk 0:02:00.5]} 31. Qc5 {[%clk 0:00:41.6]} 31... Qa5 {[%clk 0:02:01.2]} 32. Nb3 {[%clk 0:00:38]} 32... Bxb3 {[%clk 0:02:01]} 0-1

[Event "Live Chess"]
[Site "Chess.com"]
[Date "2011.01.11"]
[Round "-"]
[White "mlofman"]
[Black "hipposcottimus"]
[Result "0-1"]
[CurrentPosition "5rk1/2p3pp/p3r1b1/3p1p2/B2P1P2/2P3Pq/P4P2/R4RK1 w - -"]
[Timezone "UTC"]
[ECO "D02"]
[ECOUrl "https://www.chess.com/openings/Queens-Pawn-Opening-Zukertort-Variation-2...Bf5-3.Bf4"]
[UTCDate "2011.01.11"]
[UTCTime "04:06:47"]
[WhiteElo "1356"]
[BlackElo "1346"]
[TimeControl "540+2"]
[Termination "hipposcottimus won - game abandoned"]
[StartTime "04:06:47"]
[EndDate "2011.01.11"]
[EndTime "04:19:16"]
[Link "https://www.chess.com/game/live/86340101"]

1. d4 {[%clk 0:09:00]} 1... d5 {[%clk 0:09:00]} 2. Nf3 {[%clk 0:09:01.9]} 2... Bf5 {[%clk 0:07:21.3]} 3. Bf4 {[%clk 0:09:03.8]} 3... Nc6 {[%clk 0:06:24.5]} 4. Nc3 {[%clk 0:09:05.7]} 4... e6 {[%clk 0:06:14.5]} 5. e3 {[%clk 0:09:07.6]} 5... Nf6 {[%clk 0:06:13]} 6. Bb5 {[%clk 0:09:09.5]} 6... Bd6 {[%clk 0:05:45.9]} 7. Ne5 {[%clk 0:09:11.4]} 7... O-O {[%clk 0:05:13.7]} 8. Nxc6 {[%clk 0:09:13.3]} 8... bxc6 {[%clk 0:00:19.6]} 9. Bxc6 {[%clk 0:08:54.2]} 9... Rb8 {[%clk 0:00:18.6]} 10. Nb5 {[%clk 0:08:39.7]} 10... Bxf4 {[%clk 0:00:17]} 11. exf4 {[%clk 0:08:19.6]} 11... a6 {[%clk 0:00:18.1]} 12. Nc3 {[%clk 0:08:10.6]} 12... Rxb2 {[%clk 0:00:18.9]} 13. Ba4 {[%clk 0:08:03.1]} 13... Rb6 {[%clk 0:00:17]} 14. O-O {[%clk 0:07:59.7]} 14... Ne4 {[%clk 0:00:18.2]} 15. Nxe4 {[%clk 0:07:58.4]} 15... Bxe4 {[%clk 0:00:19.6]} 16. c3 {[%clk 0:07:50.5]} 16... f6 {[%clk 0:00:21.2]} 17. Qg4 {[%clk 0:07:30.5]} 17... Bg6 {[%clk 0:00:22.8]} 18. h4 {[%clk 0:07:07.7]} 18... f5 {[%clk 0:00:21.6]} 19. Qe2 {[%clk 0:06:52.9]} 19... Qxh4 {[%clk 0:00:21.7]} 20. Qxe6+ {[%clk 0:06:49.3]} 20... Rxe6 {[%clk 0:00:21.4]} 21. g3 {[%clk 0:06:43.7]} 21... Qh3 {[%clk 0:00:22.2]} 0-1

[Event "Live Chess"]
[Site "Chess.com"]
[Date "2011.01.11"]
[Round "-"]
[White "add5"]
[Black "hipposcottimus"]
[Result "0-1"]
[CurrentPosition "r1b2r1k/ppp2Bpp/2n5/4p2Q/4Rp2/8/PP1B2PP/5q1K w - -"]
[Timezone "UTC"]
[ECO "A00"]
[ECOUrl "https://www.chess.com/openings/Mieses-Opening-1...d5"]
[UTCDate "2011.01.11"]
[UTCTime "03:48:59"]
[WhiteElo "1155"]
[BlackElo "1337"]
[TimeControl "240+4"]
[Termination "hipposcottimus won by checkmate"]
[StartTime "03:48:59"]
[EndDate "2011.01.11"]
[EndTime "03:59:53"]
[Link "https://www.chess.com/game/live/86336441"]

1. d3 {[%clk 0:04:00]} 1... d5 {[%clk 0:04:00]} 2. e3 {[%clk 0:04:02]} 2... e5 {[%clk 0:04:01.3]} 3. Nf3 {[%clk 0:03:59.2]} 3... Nc6 {[%clk 0:03:57.2]} 4. e4 {[%clk 0:03:58.7]} 4... dxe4 {[%clk 0:03:57.5]} 5. Ng5 {[%clk 0:03:43.9]} 5... exd3 {[%clk 0:03:51.4]} 6. Bxd3 {[%clk 0:03:41.5]} 6... Be7 {[%clk 0:03:49.8]} 7. Ne4 {[%clk 0:03:41.8]} 7... Nf6 {[%clk 0:03:46.3]} 8. Nxf6+ {[%clk 0:03:42.9]} 8... Bxf6 {[%clk 0:03:43]} 9. O-O {[%clk 0:03:44.1]} 9... Bg5 {[%clk 0:03:43.5]} 10. Nc3 {[%clk 0:03:41.5]} 10... O-O {[%clk 0:03:41.9]} 11. Ne4 {[%clk 0:03:39.2]} 11... Bh4 {[%clk 0:02:55.8]} 12. Qf3 {[%clk 0:03:02.3]} 12... f5 {[%clk 0:02:50.6]} 13. Bc4+ {[%clk 0:02:52.3]} 13... Kh8 {[%clk 0:02:50.2]} 14. Nc5 {[%clk 0:02:46.7]} 14... Nd4 {[%clk 0:02:44.1]} 15. Qh5 {[%clk 0:02:14]} 15... Nxc2 {[%clk 0:02:24.6]} 16. Rb1 {[%clk 0:02:13.9]} 16... Nd4 {[%clk 0:02:07.3]} 17. Be3 {[%clk 0:02:10.7]} 17... Nc6 {[%clk 0:01:46]} 18. Rbd1 {[%clk 0:02:07]} 18... Qe7 {[%clk 0:01:35.1]} 19. Rfe1 {[%clk 0:01:09.6]} 19... f4 {[%clk 0:01:30.4]} 20. Bd2 {[%clk 0:01:00.1]} 20... Bxf2+ {[%clk 0:01:18.2]} 21. Kh1 {[%clk 0:00:50.4]} 21... Bxe1 {[%clk 0:00:56.6]} 22. Rxe1 {[%clk 0:00:51.6]} 22... Qxc5 {[%clk 0:00:58.2]} 23. Bf7 {[%clk 0:00:25.9]} 23... Qf2 {[%clk 0:00:25.1]} 24. Re4 {[%clk 0:00:09.2]} 24... Qf1# {[%clk 0:00:20.9]} 0-1

[Event "Live Chess"]
[Site "Chess.com"]
[Date "2011.01.11"]
[Round "-"]
[White "hipposcottimus"]
[Black "Cremildoabreu"]
[Result "1-0"]
[CurrentPosition "rnbq1r2/ppp1b1p1/3k3p/3Q4/8/1B6/PPPP1PPP/RNB1K2R b KQ -"]
[Timezone "UTC"]
[ECO "C42"]
[ECOUrl "https://www.chess.com/openings/Petrovs-Defense-Urusov-Gambit"]
[UTCDate "2011.01.11"]
[UTCTime "03:41:20"]
[WhiteElo "1333"]
[BlackElo "1231"]
[TimeControl "300+5"]
[Termination "hipposcottimus won by checkmate"]
[StartTime "03:41:20"]
[EndDate "2011.01.11"]
[EndTime "03:43:53"]
[Link "https://www.chess.com/game/live/86335425"]

1. e4 {[%clk 0:05:00]} 1... e5 {[%clk 0:05:00]} 2. Nf3 {[%clk 0:05:03.1]} 2... Nf6 {[%clk 0:05:00.6]} 3. Bc4 {[%clk 0:05:05.1]} 3... h6 {[%clk 0:04:56.4]} 4. Nxe5 {[%clk 0:05:06.2]} 4... d5 {[%clk 0:04:56.1]} 5. exd5 {[%clk 0:05:07.8]} 5... Nxd5 {[%clk 0:04:55.8]} 6. Nxf7 {[%clk 0:05:10]} 6... Kxf7 {[%clk 0:04:54.8]} 7. Qf3+ {[%clk 0:05:12.8]} 7... Ke8 {[%clk 0:04:40.4]} 8. Bxd5 {[%clk 0:05:15.5]} 8... Be7 {[%clk 0:04:33.7]} 9. Qf7+ {[%clk 0:05:12.2]} 9... Kd7 {[%clk 0:04:36.1]} 10. Be6+ {[%clk 0:05:14.4]} 10... Kd6 {[%clk 0:04:33.7]} 11. Bb3 {[%clk 0:04:56.2]} 11... Rf8 {[%clk 0:04:30.6]} 12. Qd5# {[%clk 0:04:57.5]} 1-0